Cogmind - Beta 10.2 @@@ ROGUE MODE // 2021.09.27 @ 02:45:17 Player: User Result: Destroyed by D-53 Grenadier with Mini Grenade Launcher Performance ------------- Evolutions (0) 0 Regions Visited (2) 400 Robots Destroyed (10) 50 Value Destroyed (308) 308 Prototype IDs (2) 40 Alien Tech Used (0) 0 Bonus (0) 0 TOTAL SCORE: 798 Bonus ------- None Cogmind --------- Core Integrity 0/250 Matter 248/300 Energy 45/250 System Corruption 0% Temperature Cool (0) Movement Walking (150) Ox1 Location -10/Mines Parts ------- > --- POWER (1) -------- Ion Engine > --- PROPULSION (2) --- Aluminum Leg Aluminum Leg > --- UTILITY (2) ------ Large Storage Unit Weapon Shielding > --- WEAPON (2) ------- (None) > --- INVENTORY (10) --- Light Ion Engine Aluminum Leg Small Storage Unit Propulsion Shielding Small Laser Grenade Launcher Peak State ------------ > --- POWER ------------ Light Ion Engine > --- PROPULSION ------- Wheel Wheel > --- UTILITY ---------- Large Storage Unit Weapon Shielding > --- WEAPON ----------- Medium Laser Assault Rifle > --- INVENTORY -------- Ion Engine Aluminum Leg Small Storage Unit Weapon Shielding EM Pulse Gun Grenade Launcher [Rating: 7] Favorites ----------- Power Light Ion Engine Engine Light Ion Engine Propulsion Wheel Leg Aluminum Leg Wheel Wheel Utility Large Storage Unit Storage Large Storage Unit Protection Weapon Shielding Weapon Assault Rifle Energy Gun Medium Laser Ballistic Gun Assault Rifle Launcher Grenade Launcher Build | -11 -10 -10 ------- Run | Scr Mat Min Slots Evolved . | . . . Power . | . . . Propulsion . | . . . Utility . | . . . Weapon . | . . . Parts Attached 17 | 4 5 8 Power 2 | 1 . 1 Engine 2 | 1 . 1 Core . | . . . Reactor . | . . . Propulsion 6 | 2 . 4 Treads . | . . . Leg 4 | . . 4 Wheel 2 | 2 . . Hover . | . . . Flight . | . . . Utility 4 | 1 2 1 Device . | . . . Storage 2 | 1 1 . Processor . | . . . Hackware . | . . . Protection 2 | . 1 1 Artifact . | . . . Weapon 5 | . 3 2 Energy Gun 2 | . 1 1 Energy Cannon . | . . . Ballistic Gun 2 | . 1 1 Ballistic Cannon . | . . . Launcher 1 | . 1 . Special Weapon . | . . . Impact Weapon . | . . . Slashing Weapon . | . . . Piercing Weapon . | . . . Special Melee Weapon . | . . . Unidentified Prototypes . | . . . Parts Lost 10 | . 1 9 Power 1 | . . 1 Propulsion 4 | . . 4 Utility 1 | . . 1 Weapon 4 | . 1 3 Highest Loss Streak 5 | . 1 5 Average Slot Usage (%) 86 | . 91 83 Engine 10 | . 14 7 Leg 7 | . . 12 Wheel 19 | . 28 12 Storage 14 | . 14 14 Protection 11 | . 8 14 Energy Gun 9 | . 12 7 Ballistic Gun 8 | . 7 9 Launcher 5 | . 5 4 Naked Turns . | . . . Heaviest Build 25 | 7 25 25 Greatest Support 20 | 20 20 20 Greatest Overweight (x) 2 | . 1 2 Average Overweight (x) . | . . . Largest Inventory Capacity 12 | 6 12 10 Average Capacity 9 | 4 9 10 Most Carried 10 | 6 8 10 Average Carried 6 | 3 6 7 Final Capacity 10 | 6 10 10 Final Carried 8 | 6 8 6 Class Distribution -------------------- 100% | Mutant Dominant Class ---------------- Mutant | -10/Materials Mutant | -10/Mines Resources | -11 -10 -10 ----------- Run | Scr Mat Min Matter Collected 465 | 214 66 185 Remotely . | . . . Salvage Created 268 | . 103 165 Parts 16 | . 6 10 Haulers Intercepted . | . . . Recyclers Shooed 1 | . 1 . Parts Field Recycled . | . . . Retrieved Matter . | . . . Parts Self-Destructed . | . . . Prevented . | . . . Kills | -11 -10 -10 ------- Run | Scr Mat Min Combat Hostiles Destroyed 9 | . 5 4 Guns 6 | . 2 4 AOE 3 | . 3 . Classes Destroyed 4 | . 3 1 Watcher 1 | . 1 . Swarmer 3 | . 3 . Grunt 4 | . 2 2 Sentry 2 | . . 2 Best Kill Streak 4 | . 4 3 Combat Bots Only 3 | . 3 3 Max Kills in Single Turn 1 | . 1 1 Gunslinging . | . . . Exploded 1 | . 1 . Melee . | . . . Uniques/NPCs Destroyed . | . . . Combat | -11 -10 -10 -------- Run | Scr Mat Min Damage Taken 1023 | . 211 812 Core 260 | . 31 229 Absorbed by Shields . | . . . Core Remaining (%) 100 | 100 . . Volleys Fired 41 | . 17 24 Largest 2 | . 2 2 Hottest 80 | . 80 70 Shots Fired 60 | . 26 34 Gun 46 | . 15 31 Cannon . | . . . Launcher 14 | . 11 3 Special . | . . . Kinetic 19 | . . 19 Thermal 15 | . 15 . Explosive 14 | . 11 3 Electromagnetic 12 | . . 12 Robot Hit Streak 8 | . 5 8 Robot Miss Streak 3 | . 3 2 Penetration Max . | . . . Secondary Targets . | . . . Shots Hit Robots 38 | . 12 26 Core Hits 23 | . 11 12 Critical Hits . | . . . Critical Kills . | . . . Critical Parts Destroyed . | . . . Melee Attacks . | . . . Impact . | . . . Slashing . | . . . Piercing . | . . . Sneak Attacks . | . . . Combat Hostiles . | . . . Follow-up Attacks . | . . . Damage Inflicted 928 | . 530 398 Guns 397 | . 99 298 Cannons . | . . . Explosions 531 | . 431 100 Melee . | . . . Ramming . | . . . Kinetic 194 | . . 194 Thermal 99 | . 99 . Explosive 531 | . 431 100 Electromagnetic 104 | . . 104 Impact . | . . . Slashing . | . . . Piercing . | . . . Highest Corruption . | . . . Average Corruption . | . . . Corruption Purged . | . . . Overload Shots . | . . . Overflow Damage 10 | . 10 . Projectiles . | . . . Explosions 10 | . 10 . Melee . | . . . Knockbacks . | . . . Impact . | . . . Kinetic . | . . . Secondary . | . . . Self-Inflicted Damage 38 | . 38 . Shots 1 | . 1 . Rammed . | . . . Targets Rammed . | . . . Kicked . | . . . Crushed . | . . . Highest Temperature 162 | . 162 54 Average Temperature 53 | . 69 22 Received Heat Transfer 177 | . 39 138 Siege Activations . | . . . Robots Corrupted . | . . . Combat Hostiles . | . . . Parts Fried . | . . . Impact Corruptions . | . . . Robots Melted . | . . . Combat Hostiles . | . . . Parts Melted 2 | . 2 . Heat Transferred 296 | . 296 . Parts Sabotaged . | . . . Parts Stolen . | . . . Parts Stripped . | . . . Power Chain Reactions . | . . . Missiles Intercepted . | . . . Alert | -11 -10 -10 ------- Run | Scr Mat Min Peak Influence 140 | . 140 109 Initial 54 | . . 54 Average 59 | . 43 84 Maximum Alert Level . | . . . Low Security (%) 100 | 100 100 100 Level 1 . | . . . Level 2 . | . . . Level 3 . | . . . Level 4 . | . . . Level 5 . | . . . High Security . | . . . Max Security . | . . . Squads Dispatched . | . . . Investigation . | . . . Extermination . | . . . Reinforcement . | . . . Assault . | . . . Garrison . | . . . Intercept . | . . . Construction Impeded . | . . . Haulers Reinforced . | . . . Stealth | -11 -10 -10 --------- Run | Scr Mat Min Distress Signals 1 | . 1 . Communications Jammed . | . . . Distress Signals . | . . . Times Spotted 15 | . 8 7 Peak Tracking Total 3 | . 3 2 Tactical Retreats . | . . . Traps | -11 -10 -10 ------- Run | Scr Mat Min Traps Triggered . | . . . Indirectly . | . . . Trap Hack Attempts . | . . . Triggered . | . . . Disarmed . | . . . Reprogrammed . | . . . Reused . | . . . Traps Extracted . | . . . Installed . | . . . Triggered . | . . . Machines | -11 -10 -10 ---------- Run | Scr Mat Min Machines Disabled 3 | . 1 2 Max in Single Turn 2 | . 1 2 Machines Sabotaged . | . . . Garrisons Compromised . | . . . Overloaded Fab Kills . | . . . Fab Network Shutdowns . | . . . Hacking | -11 -10 -10 --------- Run | Scr Mat Min Machines Accessed 2 | . 2 . Terminals 2 | . 2 . Fabricators . | . . . Repair Stations . | . . . Recycling Units . | . . . Scanalyzers . | . . . Garrison Access . | . . . Total Hacks 7 | . 7 . Successful 5 | . 5 . Failed 2 | . 2 . Catastrophic . | . . . Database Lockouts . | . . . Manual . | . . . Terminals 7 | . 7 . Fabricators . | . . . Repair Stations . | . . . Recycling Units . | . . . Scanalyzers . | . . . Garrison Access . | . . . Terminal Hacks 5 | . 5 . Record 1 | . 1 . Prototype ID Bank 1 | . 1 . Repair Station Index 1 | . 1 . Dispatch Records 1 | . 1 . Hauler Manifests 1 | . 1 . Fabricator Hacks . | . . . Repair Station Hacks . | . . . Recycling Unit Hacks . | . . . Scanalyzer . | . . . Garrison Access Hacks . | . . . Unauthorized Hacks . | . . . Terminals . | . . . Fabricators . | . . . Repair Stations . | . . . Recycling Units . | . . . Scanalyzers . | . . . Garrison Access . | . . . Data Cores Recovered . | . . . Used . | . . . Hacking Detections 1 | . 1 . Full Trace Events . | . . . Feedback Events . | . . . Feedback Blocked . | . . . Robot Schematics Acquired . | . . . Robots Built . | . . . Matter . | . . . Time . | . . . Total Robot Build Rating . | . . . Part Schematics Acquired . | . . . Parts Built . | . . . Matter . | . . . Time . | . . . Total Part Build Rating . | . . . Parts Repaired . | . . . Time . | . . . Parts Recycled . | . . . Recycled Matter . | . . . Retrieved Matter . | . . . Retrieved Components . | . . . Parts Scanalyzed . | . . . Part Schematics Acquired . | . . . Parts Damaged . | . . . Bothacking | -11 -10 -10 ------------ Run | Scr Mat Min Used RIF Installer . | . . . Robots Hacked . | . . . Non-combat . | . . . Combat . | . . . Robot Hacks Applied . | . . . Relay Couplers Released . | . . . Robots Rewired . | . . . Allies Hacked . | . . . Hacks Repelled . | . . . Allies | -11 -10 -10 -------- Run | Scr Mat Min Total Allies . | . . . Largest Group . | . . . Highest-Rated Group . | . . . Highest-Rated Ally . | . . . Total Orders . | . . . Ally Attacks . | . . . Total Damage . | . . . Kills . | . . . Allies Corrupted . | . . . Allies Melted . | . . . Intel | -11 -10 -10 ------- Run | Scr Mat Min Robot Analysis Total . | . . . Derelict Logs Recovered . | . . . Drone Launches . | . . . Drone Recoveries . | . . . Exploration | -11 -10 -10 ------------- Run | Scr Mat Min Turns Passed 467 | 56 170 241 Spaces Moved 348 | 60 127 161 Core 18 | 18 . . Treads . | . . . Legs 70 | . . 70 Wheels 260 | 42 127 91 Hover . | . . . Flight . | . . . Fastest Speed 50 | 50 80 90 Average Speed 93 | 71 89 104 Slowest Speed 150 | 80 90 150 Overloaded Moves . | . . . Propulsion Burnouts . | . . . Robots Hopped . | . . . Cave-ins Triggered . | . . . Exploration Rate (%) 26 | 3 31 45 Regions Visited 2 Branch Regions 1 Pre-discovered Areas . | . . . Known Exits Taken . | . . . Unknown Exits Taken 2 | 1 1 . Scrap Searched 1 | . . 1 Spaces Dug . | . . . Terrain Destroyed 70 | . 45 25 Melee . | . . . Projectile . | . . . AOE 70 | . 45 25 Terrain Rammed . | . . . Walls Destroyed . | . . . Machines Disabled . | . . . Actions | -11 -10 -10 --------- Run | Scr Mat Min Total 429 | 73 157 199 Wait . | . . . Move 346 | 59 126 161 Hop . | . . . Pick Up 23 | 10 7 6 Fast Attach . | . . . Attach 16 | 4 4 8 Detach . | . . . Swap 1 | . 1 . Drop 2 | . 2 . Fire 41 | . 17 24 Melee . | . . . Ram . | . . . Kick . | . . . Crush . | . . . Escape Stasis . | . . . Rewire . | . . . Trap . | . . . Miscellaneous . | . . . Route ------- -11/Scrapyard -10/Materials -10/Mines (discovered 1 exit: [*Mat]) History --------- Turn | Location | Event 3 | -11/Scrapyard | Discovered new exit (range 16) 57 | -11/Scrapyard | Entered Materials 218 | -10/Materials | Discovered new exit (range 7) 227 | -10/Materials | Entered Mines 305 | -10/Mines | Build established: Mutant 385 | -10/Mines | Lost 5 parts (1p2n2w) 453 | -10/Mines | Assembled infested the area 457 | -10/Mines | Core integrity fell below 50% 457 | -10/Mines | Discovered new exit (range 7) 459 | -10/Mines | Core integrity fell below 20% 468 | -10/Mines | Destroyed by D-53 Grenadier with Mini Grenade Launcher Last Messages --------------- Found 20 Matter. Found 25 Matter. Acquired 25 matter. Acquired 20 matter. Acquired 14 matter. U-05 Engineer lays Concrete. ALERT: Infestation in the mines, dispatching Demolisher response squad. C-30 ARC bursts open, deploying its payload. D-53 Grenadier unfolds itself. T-07 Excavator destroyed. EXIT=FOUND Weapon Shielding destroyed. Aluminum Leg destroyed. Assault Rifle destroyed. D-53 Grenadier destroyed. The unstable cave ceiling collapses. Aluminum Leg destroyed. The unstable cave ceiling collapses. U-05 Engineer lays Concrete. Map ----- +----------------------------------------------------+ | #### ###??????????????? | | ## ???????? | | ## ####### ######???????????? | | ##### ##????????????????????????? | | ##???# ##?????????????????????????? | | ## ##????## ##??????????????????????????? | | ?## ##?????## #???????????????????????????? | | ??## ##?????# #???????????????????????????? | | ???## ##????# #???????????????????????????? | | ????# #????# #???????????????????????????? | | ????# #???## #???????????????????????????? | | ????## # ##??## ###?????????????????????????? | | ?????### ###??## ##????????????????????????? | | ???????# ###### #????????????????????????? | | ???????# #?????????????????????????? | | ???????######### ##?????????????????????????? | | ???????????????## #??????????????????????????? | | ????????????????## ##?????????????????????????? | | ?????????????????## ##????????????????????????? | | ??????????????????## ##???????????????????????? | | ???????????????????### ####????????????????????? | | ?????????????????????## # ##???????????????????? | | ????????????????????## ## #????????????????? | | ????????????????????# #????????????????? | | ?????????????????##### # #????????????????? | | ???????????????# @ #??????????????????? | | ??????????????# #??????????????????? | | ??????????????# < d #??????????????????? | | ?????????????# u ##??????????????????? | | ??????????? ## #???????????????????? | | ??????????? ??# #####???????????????????? | | ???????????? ???# #????????????????????????? | | ???????????? ????? ?????????????????????????? | | ????????????? ????? #?????????????????????????? | | ??????????????????? ##??????????????????????????? | | ??????????????????? #????????????????????????????? | | ?????????????????? #?????????????????????????????? | | ????????????????? #??????????????????????????????? | | ?????????????????#???????????????????????????????? | | ?????????????????????????????????????????????????? | | ?????????????????????????????????????????????????? | | ?????????????????????????????????????????????????? | | ?????????????????????????????????????????????????? | | ?????????????????????????????????????????????????? | | ?????????????????????????????????????????????????? | | ?????????????????????????????????????????????????? | | ?????????????????????????????????????????????????? | | | | | | | +----------------------------------------------------+ Best States ------------- Heat Dissipation 25 Energy Generation 10 Energy Capacity 125 Matter Stores 300 Matter Capacity 300 Sight Range 16 Terrain Scan Density 10 Weapon Shielding 33 Evasion (%) 50 Item Schematics ----------------- None Robot Schematics ------------------ None Fabricated ------------ Nothing Alien Tech Used ----------------- None Achievements -------------- None Challenges ------------ None Game ------ Seed HardlightHugeRegulator Manual? 0 Play Time 00:08:26 Cumulative 18.2 hours Start 2021.09.27 @ 02:38:43 End 2021.09.27 @ 02:45:17 Sessions 1 Manual Loads 0 Difficulty Rogue Special Mode None Game No. 38 Rogue 38 Adventurer 0 Explorer 0 Win Type - Total 0 Types 0/0/0/0/0/0/0/0/0 Lore% 25 Gallery% 25 Achievement% 19 Wizard Run 0 Options --------- ASCII 0 Keyboard 0 Movement Mouse Keybinds 0 Fullscreen 2 Font 20/Terminus Map View 66x50 Tactical HUD 0 Map Filters NONE Filters NONE Steam 1 RUN: 620bf0f1-2575-45bd-a138-78834a8671e2